bitfinex/quotes_SOLUSD_20241223
["timestamp","ask_amount","ask_price","bid_price","bid_amount"]
[1734944644968,1.55436238,186.34,186.2,32.52547421]
[1734944645180,1.55436238,186.34,186.17,32.52547421]
[1734944645674,20.0,186.32,186.19,32.52547421]
[1734944645884,0.80691838,186.31,186.2,32.52547421]
[1734944646688,0.80691838,186.31,186.16,32.52547421]
[1734944647066,0.80691838,186.31,186.14,32.52547421]
[1734944649056,0.80691838,186.31,186.12,32.52547421]
[1734944649270,0.80691838,186.31,186.14,32.52547421]
[1734944649992,0.80691838,186.31,186.03,32.52547421]
[1734944649993,0.80691838,186.31,186.12,32.52547421]
[1734944650189,13.6066,186.3,186.1,32.52547421]
[1734944650381,20.0,186.27,186.08,32.52547421]
[1734944650572,0.80691838,186.26,186.08,32.52547421]
[1734944650767,0.80691838,186.26,186.06,32.52547421]
[1734944651000,20.0,186.22,186.02,32.52547421]
[1734944651195,20.0,186.18,185.98,32.52547421]
[1734944651396,20.0,186.13,185.98,32.52547421]
[1734944651703,0.80691838,186.12,185.98,32.52547421]
[1734944652379,0.80691838,186.12,186.0,32.52547421]
[1734944652573,0.80691838,186.12,185.98,32.52547421]
[1734944654177,0.80691838,186.12,186.0,32.52547421]
[1734944654596,0.80691838,186.12,186.02,32.52547421]
[1734944654776,0.80691838,186.12,186.01,32.52547421]
[1734944656398,0.80691838,186.12,186.03,32.52547421]
[1734944656605,0.80691838,186.12,186.05,32.52547421]
[1734944656901,0.80691838,186.15,186.05,32.52547421]
[1734944657107,0.80691838,186.15,186.03,32.52547421]
[1734944657397,0.80691838,186.15,186.07,32.52547421]
[1734944657603,0.80691838,186.2,186.11,32.52547421]
[1734944658007,0.80691838,186.2,186.09,32.52547421]
[1734944658811,0.80691838,186.2,186.07,32.52547421]
[1734944659513,0.80691838,186.2,186.09,32.52547421]
[1734944659514,20.0,186.18,186.09,32.52547421]
[1734944659675,0.80691838,186.17,186.09,32.52547421]
[1734944660087,0.80691838,186.2,186.09,32.52547421]
[1734944660576,5.3999,186.23,186.15,32.52547421]
[1734944660907,0.80691838,186.22,186.15,32.52547421]
[1734944661402,0.80691838,186.22,186.13,32.52547421]
[1734944661607,0.80691838,186.22,186.1,32.52547421]
[1734944661790,20.0,186.2,186.08,32.52547421]
[1734944661994,0.80691838,186.19,186.08,32.52547421]
[1734944662491,0.80691838,186.19,186.06,32.52547421]
[1734944663309,0.80691838,186.19,186.04,32.52547421]
[1734944663506,0.80691838,186.19,186.06,32.52547421]
[1734944664009,0.80691838,186.19,186.08,32.52547421]
[1734944665404,0.80691838,186.19,186.06,32.52547421]
[1734944666222,0.80691838,186.19,186.06,19.98732091]
[1734944666401,0.80691838,186.19,186.08,19.98732091]
[1734944666805,0.80691838,186.19,186.06,19.98732091]
[1734944667305,0.80691838,186.19,186.08,19.98732091]
[1734944667507,0.80691838,186.19,186.06,19.98732091]
[1734944668718,0.80691838,186.19,186.04,19.98732091]
[1734944669017,20.0,186.11,185.98,19.98732091]
[1734944669222,0.80691838,186.1,185.96,19.98732091]
[1734944669406,0.80691838,186.1,185.98,19.98732091]
[1734944669604,0.80691838,186.1,185.99,19.98732091]
[1734944669807,0.80691838,186.1,185.95,0.80632365]
[1734944669808,0.80691838,186.1,186.01,19.98732091]
[1734944672126,0.80691838,186.1,185.97,19.98732091]
[1734944672535,0.80691838,186.1,185.98,20.79376777]
[1734944672696,0.80691838,186.13,186.0,19.98732091]
[1734944673023,0.80691838,186.13,186.07,19.98732091]
[1734944673202,5.9735553,186.21,186.11,19.98732091]
[1734944673406,5.9735553,186.21,186.08,0.80590653]
[1734944673407,0.80691838,186.2,186.13,19.98732091]
[1734944673619,0.5135553,186.21,186.15,19.98732091]
[1734944674341,0.5135553,186.21,186.17,19.98732091]
[1734944674638,0.5135553,186.21,186.16,19.98732091]
[1734944674804,0.5135553,186.21,186.17,19.98732091]
[1734944675140,0.5135553,186.21,186.16,19.98732091]
[1734944675299,0.5135553,186.21,186.15,19.98732091]
[1734944676066,0.5135553,186.21,186.16,19.98732091]
[1734944676196,0.5135553,186.21,186.1,0.80559602]
[1734944676396,0.5135553,186.21,186.13,19.98732091]
[1734944677030,0.5135553,186.21,186.14,19.98732091]
[1734944677328,0.5135553,186.21,186.12,19.98732091]
[1734944677529,0.5135553,186.21,186.14,19.98732091]
[1734944677711,0.5135553,186.21,186.12,19.98732091]
[1734944678203,0.5135553,186.21,186.14,19.98732091]
[1734944679301,0.5135553,186.21,186.12,19.98732091]
[1734944679508,0.5135553,186.21,186.14,19.98732091]
[1734944681144,0.5135553,186.21,186.12,19.98732091]
[1734944682018,0.5135553,186.21,186.1,19.98732091]
[1734944682511,0.80691838,186.2,186.08,19.98732091]
[1734944684035,0.80691838,186.2,186.1,19.98732091]
[1734944684227,0.5135553,186.21,186.12,19.98732091]
[1734944684948,0.5135553,186.21,186.14,19.98732091]
[1734944685253,0.5135553,186.21,186.16,19.98732091]
[1734944685851,0.5135553,186.21,186.12,19.98732091]
[1734944686015,0.5135553,186.21,186.2,19.98732091]
[1734944686333,0.5135553,186.21,186.2,39.97464182]
[1734944686545,0.5135553,186.21,186.2,40.77975889]
[1734944687035,0.80691838,186.35,186.2,40.77975889]
[1734944687237,0.80691838,186.35,186.27,19.98732091]
[1734944687614,0.80691838,186.35,186.25,19.98732091]
[1734944688845,0.80691838,186.35,186.27,19.98732091]
[1734944690949,5.676,186.36,186.27,19.98732091]
[1734944691126,0.80691838,186.35,186.27,19.98732091]
[1734944691320,5.676,186.36,186.27,19.98732091]
[1734944691646,5.676,186.36,186.28,0.80502187]
[1734944691850,5.676,186.36,186.29,19.98732091]
[1734944692351,8.497,186.42,186.31,19.98732091]
[1734944692534,0.80691838,186.41,186.31,19.98732091]
[1734944693045,5.6688,186.43,186.31,19.98732091]
[1734944693249,0.80691838,186.42,186.33,19.98732091]
[1734944693432,0.80691838,186.42,186.28,0.80478145]
[1734944693631,0.80691838,186.38,186.23,19.98732091]
[1734944693953,9.134,186.37,186.21,19.98732091]
[1734944694150,20.0,186.34,186.21,19.98732091]
[1734944694335,0.80691838,186.33,186.23,19.98732091]
[1734944696074,0.80691838,186.33,186.21,19.98732091]
[1734944696859,0.80691838,186.33,186.19,19.98732091]
[1734944697230,5.5186,186.32,186.19,19.98732091]
[1734944697430,20.0,186.29,186.19,19.98732091]
[1734944697630,0.80691838,186.28,186.19,19.98732091]
[1734944699447,20.0,186.29,186.19,19.98732091]
[1734944699646,0.80691838,186.28,186.19,19.98732091]
[1734944701644,0.80691838,186.28,186.16,0.80544088]
[1734944701645,0.80691838,186.28,186.17,19.98732091]
[1734944701843,8.2356,186.27,186.12,19.98732091]
[1734944702160,20.0,186.24,186.11,19.98732091]
[1734944702357,0.80691838,186.23,186.13,19.98732091]
[1734944702667,20.0,186.24,186.16,19.98732091]
[1734944703237,0.80691838,186.23,186.15,19.98732091]
[1734944703440,0.80691838,186.23,186.13,19.98732091]
[1734944703964,0.80691838,186.23,186.14,19.98732091]
[1734944704264,0.80691838,186.26,186.15,20.79295309]
[1734944704466,0.80691838,186.26,186.16,19.98732091]
[1734944704833,20.0,186.24,186.12,19.98732091]
[1734944705036,0.80691838,186.23,186.12,19.98732091]
[1734944705261,0.80691838,186.23,186.11,19.98732091]
[1734944705643,0.80691838,186.23,186.04,0.8055394]
[1734944705644,20.0,186.19,186.1,19.98732091]
[1734944705955,0.80691838,186.18,186.05,19.98732091]
[1734944706264,0.80691838,186.18,186.06,19.98732091]
[1734944706839,0.80691838,186.18,186.04,20.79325483]
[1734944707248,0.80691838,186.18,186.03,19.98732091]
[1734944707874,20.0,186.1,185.97,20.79335529]
[1734944708061,0.80691838,186.09,185.96,19.98732091]
[1734944708245,0.80691838,186.09,185.95,20.79335529]
[1734944708966,0.80691838,186.09,185.95,19.98732091]
[1734944709261,0.80691838,186.09,185.94,19.98732091]
[1734944709461,0.80691838,186.12,186.03,19.98732091]
[1734944709651,5.1557,186.13,186.05,19.98732091]
[1734944710250,0.80691838,186.12,186.05,19.98732091]
[1734944710458,5.1557,186.13,186.07,19.98732091]
[1734944710665,5.1557,186.13,186.06,19.98732091]
[1734944710966,5.6369,186.21,186.07,20.79321405]
[1734944711161,0.80691838,186.2,186.05,19.98732091]
[1734944712036,20.0,186.18,186.05,19.98732091]
[1734944712368,0.80691838,186.17,186.05,19.98732091]
[1734944713252,0.80691838,186.17,186.01,19.98732091]
[1734944713873,0.80691838,186.17,185.99,19.98732091]
[1734944714173,5.2947,186.12,185.97,19.98732091]
[1734944714373,20.0,186.09,185.97,19.98732091]
[1734944714661,0.80691838,186.08,185.97,19.98732091]
[1734944714976,0.80691838,186.08,185.99,19.98732091]
[1734944715670,20.0,186.09,185.97,19.98732091]
[1734944715874,0.80691838,186.08,185.97,19.98732091]
[1734944716451,0.80691838,186.08,185.95,20.79352952]
[1734944717251,0.80691838,186.08,185.96,19.98732091]
[1734944717469,0.80691838,186.08,185.93,19.98732091]
[1734944717773,20.0,186.04,185.87,0.80645163]
[1734944717972,8.7288,186.07,185.87,0.80645163]
[1734944717973,20.0,186.0,185.87,20.79377254]
[1734944718270,0.80691838,186.02,185.9,19.98732091]
[1734944718451,0.80691838,186.02,185.92,19.98732091]
[1734944718657,5.5223,186.03,185.95,19.98732091]
[1734944719048,0.80691838,186.02,185.86,0.80640262]
[1734944719257,5.5223,186.11,186.0,19.98732091]
[1734944719459,5.5223,186.11,186.04,19.98732091]
[1734944719866,5.5223,186.11,186.02,19.98732091]
[1734944720063,5.5223,186.11,186.06,19.98732091]
[1734944720556,14.2511,186.17,186.08,19.98732091]
[1734944720759,14.2511,186.17,186.03,19.98732091]
[1734944720760,5.5223,186.17,186.1,19.98732091]
[1734944721059,5.5223,186.17,186.08,19.98732091]
[1734944721287,5.5223,186.17,186.1,19.98732091]
[1734944721778,0.80691838,186.16,186.06,19.98732091]
[1734944722286,0.80691838,186.16,186.04,19.98732091]
[1734944722462,0.80691838,186.16,186.06,19.98732091]
[1734944722656,5.5223,186.17,186.08,19.98732091]
[1734944722862,5.5223,186.17,186.12,19.98732091]
[1734944723382,8.7288,186.22,186.12,19.98732091]
[1734944724252,5.5223,186.24,186.14,19.98732091]
[1734944724459,0.80691838,186.23,186.14,19.98732091]
[1734944725887,0.80691838,186.23,186.16,19.98732091]
[1734944726587,269.06916419,186.45,186.18,19.98732091]
[1734944726588,5.1806,186.31,186.18,19.98732091]
[1734944726791,0.80691838,186.3,186.2,19.98732091]
[1734944726961,0.80691838,186.3,186.19,0.80535943]
[1734944727167,0.80691838,186.3,186.17,19.98732091]
[1734944727893,0.80691838,186.3,186.18,19.98732091]
[1734944728074,0.80691838,186.3,186.13,0.80534191]
[1734944728075,0.80691838,186.3,186.16,19.98732091]
[1734944728271,20.0,186.28,186.15,19.98732091]
[1734944728613,0.80691838,186.27,186.15,19.98732091]
[1734944729464,0.80691838,186.27,186.14,19.98732091]
[1734944729775,0.80691838,186.27,186.12,19.98732091]
[1734944730476,0.80691838,186.27,186.13,19.98732091]
[1734944730673,0.80691838,186.27,186.18,19.98732091]
[1734944730870,0.80691838,186.3,186.19,19.98732091]
[1734944732803,0.80691838,186.3,186.18,19.98732091]
[1734944733173,20.0,186.28,186.15,19.98732091]
[1734944733477,0.80691838,186.27,186.18,19.98732091]
[1734944733897,5.1806,186.31,186.18,19.98732091]
[1734944733898,0.80691838,186.3,186.18,19.98732091]
[1734944734303,0.80691838,186.3,186.19,20.79273074]
[1734944734489,0.80691838,186.3,186.21,19.98732091]
[1734944734974,5.98751838,186.31,186.22,0.80524977]
[1734944735169,5.98751838,186.31,186.21,19.98732091]
[1734944736274,5.98751838,186.31,186.18,19.98732091]
[1734944737295,20.0,186.28,186.14,19.98732091]
[1734944737470,0.80691838,186.27,186.14,19.98732091]
[1734944737674,0.80691838,186.27,186.15,19.98732091]
[1734944738293,0.80691838,186.27,186.09,0.80555982]
[1734944738294,0.80691838,186.27,186.16,20.79287934]
[1734944738500,20.0,186.28,186.16,20.79287934]
[1734944738696,0.80691838,186.27,186.17,19.98732091]
[1734944742204,0.80691838,186.27,186.19,19.98732091]
[1734944742499,0.80691838,186.27,186.13,0.80549568]
[1734944742500,0.80691838,186.27,186.17,19.98732091]
[1734944743171,5.98751838,186.31,186.22,19.98732091]
[1734944743375,5.1806,186.31,186.22,19.98732091]
[1734944745615,0.80691838,186.3,186.21,19.98732091]
[1734944746120,20.0,186.28,186.17,19.98732091]
[1734944746293,0.80691838,186.27,186.15,19.98732091]
[1734944747316,0.80691838,186.27,186.14,19.98732091]
[1734944747518,0.80691838,186.27,186.11,19.98732091]
[1734944748119,20.0,186.22,186.11,19.98732091]
[1734944748301,0.80691838,186.21,186.1,19.98732091]
[1734944748503,0.80691838,186.21,186.07,19.98732091]
[1734944748693,0.80691838,186.21,186.08,19.98732091]
[1734944748894,0.80691838,186.21,186.09,19.98732091]
[1734944749093,0.80691838,186.21,186.08,19.98732091]
[1734944749402,0.80691838,186.21,186.09,19.98732091]
[1734944749596,0.80691838,186.21,186.08,19.98732091]
[1734944749790,0.80691838,186.21,186.12,19.98732091]
[1734944749993,0.80691838,186.24,186.14,19.98732091]
[1734944750195,0.80691838,186.24,186.15,19.98732091]
[1734944751227,0.80691838,186.24,186.14,19.98732091]
[1734944753711,20.0,186.22,186.12,19.98732091]
[1734944753912,0.80691838,186.21,186.12,19.98732091]
[1734944754216,0.80691838,186.21,186.11,19.98732091]
[1734944754792,0.80691838,186.21,186.12,20.793005]
[1734944755222,0.80691838,186.21,186.12,19.98732091]
[1734944756715,0.80691838,186.21,186.1,19.98732091]
[1734944756918,0.80691838,186.21,186.08,19.98732091]
[1734944759129,20.0,186.17,186.06,19.98732091]
[1734944759293,20.0,186.17,186.08,19.98732091]
[1734944759493,5.6466,186.2,186.12,19.98732091]
[1734944759723,5.6466,186.2,186.14,19.98732091]
[1734944760795,5.6466,186.2,186.12,19.98732091]
[1734944761307,0.80691838,186.19,186.12,19.98732091]
[1734944761496,5.6466,186.2,186.12,19.98732091]
[1734944761695,5.6466,186.2,186.13,0.80569159]
[1734944761911,5.6466,186.2,186.12,19.98732091]
[1734944762306,0.80691838,186.19,186.12,19.98732091]
[1734944762831,0.80691838,186.19,186.1,19.98732091]
[1734944763018,0.80691838,186.19,186.06,19.98732091]
[1734944763408,0.80691838,186.19,186.11,19.98732091]
[1734944764508,0.80691838,186.19,186.09,19.98732091]
[1734944764707,0.80691838,186.19,186.07,19.98732091]
[1734944764910,20.0,186.17,186.07,19.98732091]
[1734944765214,20.0,186.17,186.08,0.8059383]
[1734944765524,0.80691838,186.16,186.07,19.98732091]
[1734944765731,20.0,186.17,186.03,19.98732091]
[1734944765732,20.0,186.17,186.09,19.98732091]
[1734944765928,5.6466,186.2,186.15,19.98732091]
[1734944766121,8.5038,186.25,186.17,19.98732091]
[1734944766326,0.80691838,186.24,186.17,19.98732091]
[1734944766555,0.80691838,186.24,186.15,19.98732091]
[1734944766841,0.80691838,186.24,186.14,19.98732091]
[1734944767143,0.80691838,186.24,186.12,19.98732091]
[1734944767318,20.0,186.22,186.1,19.98732091]
[1734944767513,0.80691838,186.21,186.1,19.98732091]
[1734944767719,0.80691838,186.21,186.07,19.98732091]
[1734944768339,0.80691838,186.21,186.08,19.98732091]
[1734944768648,0.80691838,186.21,186.03,19.98732091]
[1734944768649,0.80691838,186.21,186.1,19.98732091]
[1734944768845,0.80691838,186.21,186.11,19.98732091]
[1734944769042,0.80691838,186.24,186.11,19.98732091]
[1734944769256,0.80691838,186.24,186.12,20.79300651]
[1734944770357,20.0,186.22,186.12,20.79300651]
[1734944770550,0.80691838,186.21,186.11,19.98732091]
[1734944770850,5.4587,186.2,186.07,8.36670062]
[1734944771055,8.4126,186.16,186.05,8.36670062]
[1734944771235,0.80691838,186.15,186.05,8.36670062]
[1734944771559,0.80691838,186.15,186.05,19.98732091]
[1734944771731,0.80691838,186.15,186.04,19.98732091]
[1734944772728,20.0,186.11,186.02,8.36670062]
[1734944773062,20.0,186.05,185.99,21.86968787]
[1734944773355,0.80691838,186.04,185.91,46.62344431]
[1734944774522,20.0,186.0,185.81,19.98732091]
[1734944774721,20.0,186.0,185.75,8.8848]
[1734944774722,0.80691838,185.99,185.8,19.98732091]
[1734944774963,0.80691838,185.99,185.82,20.79434579]
[1734944775262,0.80691838,185.99,185.8,19.98732091]
[1734944775427,8.41282097,185.95,185.88,19.98732091]
[1734944775623,8.41282097,185.95,185.9,19.98732091]
[1734944775829,8.41282097,185.95,185.91,0.80658785]
[1734944776028,8.41282097,185.95,185.89,19.98732091]
[1734944776342,8.41282097,185.99,185.91,19.98732091]
[1734944776941,9.21973935,186.01,185.91,19.98732091]
[1734944777328,9.21973935,186.01,185.9,19.98732091]
[1734944777534,9.21973935,186.01,185.88,19.98732091]
[1734944777736,0.80691838,186.01,185.88,19.98732091]
[1734944778446,9.21973935,186.01,185.88,19.98732091]
[1734944779845,9.21973935,186.01,185.86,19.98732091]
[1734944780036,20.0,185.99,185.87,0.80670196]
[1734944780239,0.80691838,186.01,185.88,19.98732091]
[1734944780554,8.41282097,186.02,185.93,19.98732091]
[1734944780745,8.41282097,186.02,185.94,0.80642373]
[1734944781753,9.0944,186.03,185.94,0.80642373]
[1734944782347,0.80691838,186.07,185.95,19.98732091]
[1734944782543,0.80691838,186.07,185.94,0.80642373]
[1734944782544,17.36242097,186.08,185.98,19.98732091]
[1734944782742,0.80691838,186.07,185.99,0.8061811]
[1734944782925,0.80691838,186.07,185.97,19.98732091]
[1734944783125,0.80691838,186.07,185.96,19.98732091]
[1734944783344,0.80691838,186.07,185.88,5.19]
[1734944783345,0.80691838,186.07,185.95,19.98732091]
[1734944783551,0.80691838,186.07,185.96,20.79366297]
[1734944783750,9.21973935,186.07,185.96,19.98732091]
[1734944783925,9.21973935,186.07,185.95,19.98732091]
[1734944784127,0.80691838,186.07,185.96,0.40253508]
[1734944784758,0.80691838,186.07,185.96,20.38985599]
[1734944785251,8.9496,186.08,185.98,19.98732091]
[1734944785455,8.9496,186.08,186.0,19.98732091]
[1734944785650,9.4204469,186.11,186.02,19.98732091]
[1734944785954,8.41282097,186.11,186.02,19.98732091]
[1734944786131,8.41282097,186.11,186.01,0.40199142]
[1734944786132,1.00762593,186.12,186.01,0.40199142]
[1734944786332,1.00762593,186.12,185.99,19.98732091]
[1734944786638,1.00762593,186.12,185.98,19.98732091]
[1734944786846,1.00762593,186.12,185.99,0.40226795]
[1734944787034,20.0,186.1,185.99,0.40226795]
[1734944787348,8.2206,186.13,185.99,0.40226795]
[1734944787349,8.2206,186.13,186.02,19.98732091]
[1734944787549,1.0075212,186.12,186.01,19.98732091]
[1734944787734,1.0075212,186.12,186.02,0.40195647]
[1734944788253,1.0075212,186.12,186.01,19.98732091]
[1734944788664,1.0075212,186.12,186.0,19.98732091]
[1734944789032,1.0075212,186.12,186.01,0.40208824]
[1734944790432,20.0,186.1,186.01,0.40208824]
[1734944791558,1.0076655,186.09,185.97,19.98732091]
[1734944791738,1.0076655,186.09,185.96,19.98732091]
[1734944792853,1.0076655,186.09,185.97,19.98732091]
[1734944793038,1.0076655,186.09,185.94,19.98732091]
[1734944793230,1.0076655,186.09,185.93,19.98732091]
[1734944793433,1.0076655,186.09,185.92,19.98732091]
[1734944794257,8.2281,186.08,185.91,19.98732091]
[1734944794453,20.0,186.05,185.91,19.98732091]
[1734944794757,21.00826924,186.04,185.89,20.39027612]
[1734944794939,21.00826924,186.04,185.88,19.98732091]
[1734944795138,1.00826924,186.04,185.87,19.98732091]
[1734944795341,21.00826924,186.04,185.87,19.98732091]
[1734944795546,21.00826924,186.04,185.88,19.98732091]
[1734944795840,20.0,186.02,185.88,19.98732091]
[1734944796043,1.00843902,186.01,185.88,19.98732091]
[1734944796244,8.6184,186.0,185.87,19.98732091]
[1734944796450,20.0,185.97,185.86,20.39090529]
[1734944796761,1.00850464,185.96,185.86,20.39090529]
[1734944796961,1.00850464,185.96,185.87,19.98732091]
[1734944797850,1.00850464,185.96,185.83,20.39104592]
[1734944798452,1.00850464,185.96,185.84,19.98732091]
[1734944799159,1.00850464,185.96,185.83,0.40372501]
[1734944799160,1.00850464,185.96,185.83,20.39104592]
[1734944799456,21.00850464,185.96,185.8,19.98732091]
[1734944799639,20.0,185.92,185.77,19.98732091]
[1734944799972,1.00897663,185.91,185.77,19.98732091]
[1734944800265,1.00897663,185.91,185.81,19.98732091]
[1734944800472,1.00872965,185.94,185.83,19.98732091]
[1734944800652,1.00872965,185.94,185.84,20.39116352]
[1734944801367,8.6089,185.95,185.86,19.98732091]
[1734944801573,1.00845782,185.94,185.85,19.98732091]
[1734944801977,1.00845782,185.94,185.84,19.98732091]
[1734944802270,1.00845782,185.94,185.85,19.98732091]
[1734944802468,1.00845782,185.94,185.84,19.98732091]
[1734944802977,8.6089,185.95,185.87,19.98732091]
[1734944803561,8.6089,185.95,185.88,20.39094333]
[1734944803754,8.5954,186.0,185.88,20.39094333]
[1734944803954,1.00836443,185.99,185.88,20.39094333]
[1734944804258,1.00836443,185.99,185.88,0.40362242]
[1734944804572,8.5954,186.0,185.88,0.40362242]
[1734944804573,17.23322097,186.05,185.98,19.98732091]
[1734944804869,8.41282097,186.05,185.99,0.40246386]
[1734944805073,1.00778987,186.06,185.95,20.38964021]
[1734944805276,1.00796333,186.05,185.93,19.98732091]
[1734944805462,1.00805626,186.09,185.92,19.98732091]
[1734944805774,1.00805626,186.09,185.93,20.39034048]
[1734944805975,20.0,186.07,185.93,20.39034048]
[1734944806156,1.00803131,186.06,185.93,20.39034048]
[1734944807074,1.00803186,186.05,185.93,20.39034048]
[1734944807278,1.00806271,186.09,185.93,20.39034048]
[1734944807475,20.0,186.07,185.93,0.40301957]
[1734944807678,20.0,186.07,185.87,13.4498]
[1734944807679,1.00814363,186.06,185.91,19.98732091]
[1734944808353,1.00814363,186.06,185.9,19.98732091]
[1734944808872,21.00814363,186.06,185.9,19.98732091]
[1734944809382,20.0,186.05,185.9,19.98732091]
[1734944809552,1.00827953,186.04,185.9,19.98732091]
[1734944810478,1.00827953,186.04,185.92,19.98732091]
[1734944810674,1.00827953,186.04,185.88,0.40288902]
[1734944810675,1.00816704,186.07,185.94,19.98732091]
[1734944811985,1.00800093,186.06,185.92,19.98732091]
[1734944812181,1.00814634,186.09,185.99,19.98732091]
[1734944812379,8.41282097,186.13,186.05,19.98732091]
[1734944812560,8.41282097,186.13,186.06,0.40141355]
[1734944812961,8.41282097,186.13,186.06,20.38873446]
[1734944813160,8.471,186.15,186.06,0.40141355]
[1734944814466,8.471,186.15,186.06,20.38873446]
[1734944814663,8.471,186.15,186.07,19.98732091]
[1734944814871,8.471,186.15,186.07,20.38866918]
[1734944815083,8.471,186.15,186.06,19.98732091]
[1734944815509,8.471,186.15,186.07,0.40149838]
[1734944817075,8.471,186.15,186.05,19.98732091]
[1734944817772,1.00745643,186.14,186.09,19.98732091]
[1734944817975,8.8033,186.2,186.1,20.38897373]
[1734944818175,1.00707184,186.19,186.1,20.38897373]
[1734944818373,1.00707184,186.19,186.08,19.98732091]
[1734944819262,1.00707184,186.19,186.16,19.98732091]
[1734944819487,8.41282097,186.3,186.17,19.98732091]
[1734944819488,8.8033,186.25,186.17,19.98732091]
[1734944819675,1.00699929,186.24,186.17,19.98732091]
[1734944820488,8.8033,186.25,186.13,0.40073815]
[1734944820489,8.8033,186.25,186.18,19.98732091]
[1734944821199,8.8033,186.25,186.13,0.40073815]
[1734944821401,8.8033,186.25,186.19,19.98732091]
[1734944821708,8.8245,186.3,186.2,19.98732091]
[1734944821917,1.00666794,186.29,186.18,19.98732091]
[1734944822209,1.00666794,186.29,186.15,19.98732091]
[1734944822697,1.00666794,186.29,186.14,19.98732091]
[1734944822999,1.00666794,186.29,186.09,0.40065121]
[1734944823000,20.0,186.27,186.13,19.98732091]
[1734944823202,1.00707383,186.26,186.13,19.98732091]
[1734944823593,1.00707383,186.26,186.14,19.98732091]
[1734944823975,1.00707383,186.26,186.16,19.98732091]
[1734944824171,1.00707383,186.26,186.2,19.98732091]
[1734944824501,8.5183,186.3,186.23,19.98732091]
[1734944824970,1.00659462,186.29,186.22,19.98732091]
[1734944825177,8.5183,186.3,186.23,19.98732091]
[1734944825477,1.00657414,186.29,186.21,19.98732091]
[1734944825675,8.5183,186.3,186.21,19.98732091]
[1734944825982,1.0065884,186.29,186.22,19.98732091]
[1734944826188,1.0065884,186.29,186.2,19.98732091]
[1734944826386,1.0065884,186.29,186.17,19.98732091]
[1734944826597,20.0,186.27,186.16,19.98732091]
[1734944826779,1.00685562,186.26,186.16,19.98732091]
[1734944826971,1.00685562,186.26,186.18,19.98732091]
[1734944827175,8.5183,186.3,186.2,19.98732091]
[1734944827378,1.006675,186.29,186.21,19.98732091]
[1734944827597,8.5183,186.3,186.21,19.98732091]
[1734944827798,8.5183,186.3,186.22,19.98732091]
[1734944828403,8.5183,186.3,186.21,19.98732091]
[1734944828804,8.5183,186.3,186.2,19.98732091]
[1734944829101,1.00658814,186.29,186.19,19.98732091]
[1734944829304,1.00658814,186.29,186.17,19.98732091]
[1734944829507,1.00658814,186.29,186.16,20.38721003]
[1734944829674,1.00658814,186.29,186.17,19.98732091]
[1734944829980,1.00658814,186.29,186.18,19.98732091]
[1734944830275,8.5183,186.3,186.22,19.98732091]
[1734944830481,9.1134,186.36,186.22,19.98732091]
[1734944830714,20.0,186.33,186.22,19.98732091]
[1734944831009,1.00648027,186.32,186.22,19.98732091]
[1734944831221,1.00648332,186.35,186.22,19.98732091]
[1734944832094,20.0,186.33,186.22,19.98732091]
[1734944832293,1.00645544,186.32,186.22,19.98732091]
[1734944834118,1.00645544,186.32,186.23,19.98732091]
[1734944834696,1.00645075,186.35,186.23,19.98732091]
[1734944835303,1.00645075,186.35,186.24,19.98732091]
[1734944835702,1.00645075,186.35,186.23,19.98732091]
[1734944836028,1.00645075,186.35,186.21,20.38686166]
[1734944836387,1.00645075,186.35,186.21,0.39954075]
[1734944836611,20.0,186.33,186.22,19.98732091]
[1734944836792,1.00649941,186.32,186.22,19.98732091]
[1734944837403,1.00649941,186.32,186.21,19.98732091]
[1734944838335,20.0,186.33,186.21,19.98732091]
[1734944838547,1.00655213,186.32,186.2,0.39986678]
[1734944838695,0.3062,186.31,186.16,20.38716474]
[1734944838897,1.00679286,186.3,186.16,20.38716474]
[1734944839140,1.00679286,186.3,186.17,19.98732091]
[1734944839422,1.00679286,186.3,186.18,20.3874204]
[1734944839813,1.00679286,186.3,186.19,19.98732091]
[1734944840117,1.00679286,186.3,186.18,20.3874204]
[1734944840413,1.00679286,186.3,186.17,19.98732091]
[1734944843105,1.00679286,186.3,186.18,20.38767546]
[1734944843306,0.3062,186.31,186.21,19.98732091]
[1734944843527,1.00668798,186.32,186.22,0.39977212]
[1734944843917,1.00668798,186.32,186.22,20.38709303]
[1734944844126,1.00643258,186.35,186.22,20.38709303]
[1734944844311,1.00643258,186.35,186.23,19.98732091]
[1734944845526,1.00643258,186.35,186.24,19.98732091]
[1734944848010,1.00643258,186.35,186.23,19.98732091]
[1734944848423,1.00643258,186.35,186.26,19.98732091]
[1734944848623,9.1134,186.36,186.27,20.38640894]
[1734944849647,9.1134,186.36,186.27,0.39908803]
[1734944849947,9.1134,186.36,186.26,19.98732091]
[1734944851532,9.1134,186.36,186.28,19.98732091]
[1734944851905,9.1134,186.36,186.29,0.39892531]